[Event "30th Abu Dhabi Festival A-Open 2024"]
[Site "Abu Dhabi"]
[Date "2024.08.23"]
[Round "8.2"]
[White "Shen, Fuyan"]
[Black "Dinesh Rajan M"]
[Result "0-1"]
[ECO "D35"]
[WhiteElo "1826"]
[BlackElo "2092"]
[Annotator "RC"]
[PlyCount "134"]
[EventDate "2024.08.15"]
[EventType "swiss"]
[EventCountry "UAE"]
[SourceTitle "playchess.com"]
[Source "ChessBase"]
[SourceQuality "1"]
[TimeControl "5400+30"]

1. d4 {[%emt 0:00:07]} d5 {[%emt 0:00:15]} 2. c4 {[%emt 0:00:06]} e6 {[%emt 0:00:04]} 3. Nc3 {[%emt 0:00:05]} Nf6 {[%emt 0:00:31]} 4. cxd5 {[%emt 0:00:06]} exd5 {[%emt 0:00:04]} 5. Bg5 {[%emt 0:00:06]} Bb4 {[%emt 0:02:00]} 6. e3 {[%emt 0:00:11]} h6 {[%emt 0:00:13]} 7. Bh4 {[%emt 0:00:05]} g5 {[%emt 0:02:04]} 8. Bg3 {[%emt 0:00:04]} Ne4 {[%emt 0:00:02]} 9. Nge2 {[%emt 0:00:13]} h5 {[%emt 0:00:05]} 10. h4 {[%emt 0:00:18]} Nxg3 {[%emt 0:00:41]} 11. Nxg3 {[%emt 0:00:06]} gxh4 {[%emt 0:00:17]} 12. Nxh5 {[%emt 0:00:08]} Qg5 {[%emt 0:01:25]} 13. Qa4+ {[%emt 0:01:40]} Nc6 {[%emt 0:00:01]} 14. Nf4 {[%emt 0:00:06]} Bd7 {[%emt 0:03:45]} 15. O-O-O {[%emt 0:20:19]} Bxc3 {[%emt 0:08:03]} 16. bxc3 {[%emt 0:00:05]} O-O-O {[%emt 0:05:30]} 17. Bb5 {[%emt 0:11:09]} Kb8 {[%emt 0:06:34]} 18. Kd2 {[%emt 0:25:09]} Ka8 {[%emt 0:06:26]} 19. Rb1 {[%emt 0:01:04]} Rh6 {[%emt 0:04:07]} 20. Rb3 {[%emt 0:01:50]} Nb8 {[%emt 0:04:30]} 21. Rhb1 {[%emt 0:01:33]} Rb6 {[%emt 0:08:00]} 22. Qa5 {[%emt 0:07:46]} Bf5 {[%emt 0:07:40]} 23. R1b2 {[%emt 0:03:24]} h3 {[%emt 0:05:33]} 24. gxh3 {[%emt 0:00:42]} Qg1 {[%emt 0:01:38]} 25. Be2 {[%emt 0:09:08]} Nc6 {[%emt 0:08:57]} 26. Qc5 {[%emt 0:01:03]} Qa1 {[%emt 0:00:41]} 27. Qa3 {[%emt 0:04:51]} Kb8 {[%emt 0:01:48]} 28. Rxb6 {[%emt 0:08:23]} axb6 {[%emt 0:00:05]} 29. Rb5 {[%emt 0:00:31]} Qh1 {[%emt 0:02:32]} 30. f3 {[%emt 0:01:00]} Be6 {[%emt 0:00:54]} 31. Qc1 {[%emt 0:02:51]} Qh2 {[%emt 0:00:15]} 32. Rb1 {[%emt 0:01:20]} Na5 {[%emt 0:00:01]} 33. Qg1 {[%emt 0:00:53]} Nc4+ {[%emt 0:00:04]} 34. Kc2 {[%emt 0:00:14]} Bf5+ {[%emt 0:06:38]} 35. Kb3 {[%emt 0:00:02]} Qxg1 {[%emt 0:00:43]} 36. Rxg1 {[%emt 0:00:01]} Nxe3 {[%emt 0:00:09]} 37. h4 {[%emt 0:00:33]} Kc8 {[%emt 0:01:18]} 38. Rg7 {[%emt 0:00:45]} Rf8 {[%emt 0:00:35]} 39. h5 {[%emt 0:00:15]} Kd7 {[%emt 0:00:14]} 40. Bd3 {[%emt 0:00:51]} Bxd3 {[%emt 0:01:47]} 41. Nxd3 {[%emt 0:00:01]} Nf5 {[%emt 0:01:01]} 42. Ne5+ {[%emt 0:01:20]} Ke6 {[%emt 0:00:38]} 43. Rg2 {[%emt 0:00:51]} Rh8 {[%emt 0:00:46]} 44. Rh2 {[%emt 0:00:19]} c5 {[%emt 0:00:07]} 45. f4 {[%emt 0:00:37]} cxd4 {[%emt 0:00:05]} 46. cxd4 {[%emt 0:00:16]} Nxd4+ {[%emt 0:00:06]} 47. Kc3 {[%emt 0:00:27]} Nc6 {[%emt 0:01:23]} 48. Nd3 {[%emt 0:00:47]} Rh6 {[%emt 0:00:26]} 49. a4 {[%emt 0:00:45]} Kf5 {[%emt 0:00:12]} 50. Rb2 {[%emt 0:00:31]} Rxh5 {[%emt 0:00:46]} 51. Rxb6 {[%emt 0:00:01]} Rh3 {[%emt 0:00:09]} 52. Kd2 {[%emt 0:00:41]} Na5 {[%emt 0:01:04]} 53. Ke2 {[%emt 0:00:47]} Nc4 {[%emt 0:00:07]} 54. Rb3 {[%emt 0:00:28]} b6 {[%emt 0:01:00]} 55. Rc3 {[%emt 0:00:31]} Re3+ {[%emt 0:00:12]} 56. Kd1 {[%emt 0:00:33]} Rxd3+ {[%emt 0:00:03]} 57. Rxd3 {[%emt 0:00:08]} Nb2+ {[%emt 0:00:03]} 58. Ke2 {[%emt 0:00:11]} Nxd3 {[%emt 0:00:02]} 59. Kxd3 {[%emt 0:00:06]} Kxf4 {[%emt 0:00:01]} 60. Kd4 {[%emt 0:00:06]} Kg3 {[%emt 0:00:08]} 61. Kxd5 {[%emt 0:00:10]} f5 {[%emt 0:00:04]} 62. Kc6 {[%emt 0:00:04]} f4 {[%emt 0:00:03]} 63. Kxb6 {[%emt 0:00:04]} f3 {[%emt 0:00:03]} 64. a5 {[%emt 0:00:13]} f2 {[%emt 0:00:03]} 65. a6 {[%emt 0:00:09]} f1=Q {[%emt 0:00:02]} 66. Kb7 {[%emt 0:00:23]} Qb5+ {[%emt 0:00:05]} 67. Ka7 {[%emt 0:04:28]} Kf4 {[%emt 0:00:03]} 0-1

[Event "30th Abu Dhabi Festival A-Open 2024"]
[Site "Abu Dhabi"]
[Date "2024.08.23"]
[Round "8.3"]
[White "Barretto, Franz"]
[Black "Yeremyan, Alen"]
[Result "1-0"]
[ECO "D85"]
[WhiteElo "2101"]
[BlackElo "2279"]
[Annotator "RC"]
[PlyCount "84"]
[EventDate "2024.08.15"]
[EventType "swiss"]
[EventCountry "UAE"]
[SourceTitle "playchess.com"]
[Source "ChessBase"]
[SourceQuality "1"]
[TimeControl "5400+30"]

1. d4 {[%emt 0:00:07]} Nf6 {[%emt 0:00:09]} 2. c4 {[%emt 0:00:06]} g6 {[%emt 0:00:18]} 3. Nc3 {[%emt 0:00:05]} d5 {[%emt 0:00:12]} 4. cxd5 {[%emt 0:00:06]} Nxd5 {[%emt 0:00:03]} 5. e4 {[%emt 0:00:06]} Nxc3 {[%emt 0:00:15]} 6. bxc3 {[%emt 0:00:05]} Bg7 {[%emt 0:00:02]} 7. Bb5+ {[%emt 0:00:07]} c6 {[%emt 0:02:21]} 8. Ba4 {[%emt 0:00:05]} O-O {[%emt 0:01:00]} 9. Ne2 {[%emt 0:00:35]} a5 {[%emt 0:05:22]} 10. h4 {[%emt 0:04:10]} b5 {[%emt 0:03:55]} 11. Bb3 {[%emt 0:01:40]} a4 {[%emt 0:03:10]} 12. Bc2 {[%emt 0:00:05]} c5 {[%emt 0:06:27]} 13. h5 {[%emt 0:05:29]} cxd4 {[%emt 0:04:21]} 14. hxg6 {[%emt 0:03:33]} fxg6 {[%emt 0:05:54]} 15. cxd4 {[%emt 0:07:09]} Nc6 {[%emt 0:06:32]} 16. e5 {[%emt 0:10:52]} Qa5+ {[%emt 0:08:25]} 17. Bd2 {[%emt 0:12:08]} Qb6 {[%emt 0:02:11]} 18. Be3 {[%emt 0:00:30]} Nb4 {[%emt 0:07:07]} 19. Be4 {[%emt 0:06:57]} Bb7 {[%emt 0:03:11]} 20. Bxb7 {[%emt 0:01:10]} Qxb7 {[%emt 0:00:05]} 21. O-O {[%emt 0:00:08]} Nd5 {[%emt 0:01:45]} 22. Qd3 {[%emt 0:03:58]} b4 {[%emt 0:01:05]} 23. Rab1 {[%emt 0:02:47]} Qa6 {[%emt 0:10:36]} 24. Qxa6 {[%emt 0:04:27]} Rxa6 {[%emt 0:00:01]} 25. Bd2 {[%emt 0:00:03]} Rc6 {[%emt 0:04:48]} 26. Bxb4 {[%emt 0:03:43]} Rc2 {[%emt 0:02:43]} 27. Ng3 {[%emt 0:07:48]} Rxa2 {[%emt 0:00:43]} 28. Bc5 {[%emt 0:00:11]} Ra8 {[%emt 0:02:33]} 29. Rb7 {[%emt 0:02:52]} a3 {[%emt 0:01:56]} 30. Rfb1 {[%emt 0:00:33]} Bf8 {[%emt 0:01:22]} 31. R7b3 {[%emt 0:06:45]} Bh6 {[%emt 0:02:02]} 32. Nf1 {[%emt 0:08:35]} Kf7 {[%emt 0:01:01]} 33. Rh3 {[%emt 0:01:51]} Kg7 {[%emt 0:03:29]} 34. Rbb3 {[%emt 0:02:20]} Bc1 {[%emt 0:00:48]} 35. Rb7 {[%emt 0:00:19]} Rb2 {[%emt 0:05:24]} 36. Rd7 {[%emt 0:00:22]} a2 {[%emt 0:00:24]} 37. Bxe7 {[%emt 0:00:31]} Kg8 {[%emt 0:03:00]} 38. Bf6 {[%emt 0:01:17]} h6 {[%emt 0:01:24]} 39. Rxd5 {[%emt 0:04:01]} a1=Q {[%emt 0:00:13]} 40. Rd7 {[%emt 0:01:36]} Bf4 {[%emt 0:00:14]} 41. g3 {[%emt 0:01:02]} Rxf2 {[%emt 0:00:32]} 42. Kxf2 {[%emt 0:00:30]} Ra2+ {[%emt 0:04:27]} 1-0

[Event "30th Abu Dhabi Festival A-Open 2024"]
[Site "Abu Dhabi"]
[Date "2024.08.23"]
[Round "8.4"]
[White "Lad Mandar Pradip"]
[Black "Sham R"]
[Result "1-0"]
[ECO "E10"]
[WhiteElo "2254"]
[BlackElo "2103"]
[Annotator "RC"]
[PlyCount "95"]
[EventDate "2024.08.15"]
[EventType "swiss"]
[EventCountry "UAE"]
[SourceTitle "playchess.com"]
[Source "ChessBase"]
[SourceQuality "1"]
[TimeControl "5400+30"]

1. d4 {[%emt 0:02:43]} Nf6 {[%emt 0:00:04]} 2. c4 {[%emt 0:00:33]} e6 {[%emt 0:00:02]} 3. Nf3 {[%emt 0:00:43]} c5 {[%emt 0:00:04]} 4. d5 {[%emt 0:01:20]} b5 {[%emt 0:00:20]} 5. dxe6 {[%emt 0:20:36]} fxe6 {[%emt 0:00:04]} 6. cxb5 {[%emt 0:00:29]} d5 {[%emt 0:00:03]} 7. e3 {[%emt 0:00:50]} Bd6 {[%emt 0:00:09]} 8. Be2 {[%emt 0:02:26]} O-O {[%emt 0:00:04]} 9. O-O {[%emt 0:02:13]} Nbd7 {[%emt 0:00:04]} 10. Nbd2 {[%emt 0:08:38]} Qe7 {[%emt 0:00:31]} 11. b3 {[%emt 0:02:55]} Bb7 {[%emt 0:00:12]} 12. Bb2 {[%emt 0:03:19]} e5 {[%emt 0:04:27]} 13. e4 {[%emt 0:04:58]} dxe4 {[%emt 0:02:13]} 14. Nh4 {[%emt 0:05:52]} g6 {[%emt 0:25:39]} 15. g3 {[%emt 0:02:21]} Nb6 {[%emt 0:03:16]} 16. a4 {[%emt 0:03:50]} Rad8 {[%emt 0:00:31]} 17. Nc4 {[%emt 0:02:16]} Bc7 {[%emt 0:01:38]} 18. Qc1 {[%emt 0:01:25]} Nfd5 {[%emt 0:06:21]} 19. a5 {[%emt 0:08:17]} Nd7 {[%emt 0:24:32]} 20. Ng2 {[%emt 0:01:42]} Nb4 {[%emt 0:01:24]} 21. Ba3 {[%emt 0:08:53]} Nd3 {[%emt 0:00:47]} 22. Qe3 {[%emt 0:08:02]} Nf4 {[%emt 0:02:29]} 23. Rad1 {[%emt 0:00:17]} Ne6 {[%emt 0:01:28]} 24. b4 {[%emt 0:01:45]} Nd4 {[%emt 0:02:22]} 25. bxc5 {[%emt 0:00:57]} Rf3 {[%emt 0:02:05]} 26. Bxf3 {[%emt 0:01:19]} Nxf3+ {[%emt 0:02:54]} 27. Kh1 {[%emt 0:00:01]} Qe6 {[%emt 0:02:55]} 28. Nd2 {[%emt 0:03:55]} Qh3 {[%emt 0:01:40]} 29. Nxf3 {[%emt 0:00:07]} exf3 {[%emt 0:00:01]} 30. Nh4 {[%emt 0:00:47]} Nf6 {[%emt 0:00:04]} 31. c6 {[%emt 0:00:33]} Ng4 {[%emt 0:05:41]} 32. Qb3+ {[%emt 0:00:01]} Kg7 {[%emt 0:00:11]} 33. Nxf3 {[%emt 0:00:42]} e4 {[%emt 0:02:04]} 34. Qf7+ {[%emt 0:01:33]} Kxf7 {[%emt 0:01:12]} 35. Ng5+ {[%emt 0:00:02]} Kf6 {[%emt 0:00:59]} 36. Nxh3 {[%emt 0:00:02]} Bc8 {[%emt 0:00:06]} 37. Rxd8 {[%emt 0:00:17]} Bxd8 {[%emt 0:00:01]} 38. Bc5 {[%emt 0:00:48]} Ne5 {[%emt 0:01:14]} 39. Nf4 {[%emt 0:00:09]} Bxa5 {[%emt 0:00:40]} 40. Bxa7 {[%emt 0:00:32]} Bg4 {[%emt 0:01:08]} 41. Bd4 {[%emt 0:00:38]} g5 {[%emt 0:00:18]} 42. Ng2 {[%emt 0:01:07]} Ke6 {[%emt 0:00:24]} 43. Bxe5 {[%emt 0:00:05]} Kxe5 {[%emt 0:00:02]} 44. Ne3 {[%emt 0:00:11]} Be2 {[%emt 0:00:08]} 45. Rc1 {[%emt 0:00:48]} Kd6 {[%emt 0:00:57]} 46. Nc4+ {[%emt 0:00:16]} Bxc4 {[%emt 0:00:04]} 47. Rxc4 {[%emt 0:00:03]} Bb6 {[%emt 0:00:08]} 48. Kg2 {[%emt 0:00:07]} 1-0

[Event "30th Abu Dhabi Festival A-Open 2024"]
[Site "Abu Dhabi"]
[Date "2024.08.23"]
[Round "8.5"]
[White "Md Imran"]
[Black "Darini, Iliya"]
[Result "0-1"]
[ECO "A11"]
[WhiteElo "2225"]
[BlackElo "2083"]
[Annotator "RC"]
[PlyCount "60"]
[EventDate "2024.08.15"]
[EventType "swiss"]
[EventCountry "UAE"]
[SourceTitle "playchess.com"]
[Source "ChessBase"]
[SourceQuality "1"]
[TimeControl "5400+30"]

1. Nf3 {[%emt 0:00:08]} Nf6 {[%emt 0:00:34]} 2. e3 {[%emt 0:00:17]} d5 {[%emt 0:00:44]} 3. c4 {[%emt 0:00:07]} e6 {[%emt 0:00:16]} 4. Nc3 {[%emt 0:00:03]} c6 {[%emt 0:02:31]} 5. b3 {[%emt 0:05:25]} Bd6 {[%emt 0:00:14]} 6. Bb2 {[%emt 0:00:09]} O-O {[%emt 0:00:29]} 7. Rc1 {[%emt 0:00:13]} Nbd7 {[%emt 0:01:11]} 8. Qc2 {[%emt 0:00:09]} Re8 {[%emt 0:02:08]} 9. Be2 {[%emt 0:00:18]} a6 {[%emt 0:02:50]} 10. d4 {[%emt 0:00:45]} b5 {[%emt 0:05:31]} 11. O-O {[%emt 0:01:07]} Bb7 {[%emt 0:01:13]} 12. Rfd1 {[%emt 0:00:13]} Rc8 {[%emt 0:03:28]} 13. Bd3 {[%emt 0:00:30]} e5 {[%emt 0:08:04]} 14. dxe5 {[%emt 0:02:14]} Nxe5 {[%emt 0:02:08]} 15. Nxe5 {[%emt 0:00:02]} Bxe5 {[%emt 0:00:48]} 16. Bf5 {[%emt 0:00:08]} Rc7 {[%emt 0:01:04]} 17. Ne2 {[%emt 0:03:58]} Qe7 {[%emt 0:12:11]} 18. Bxe5 {[%emt 0:05:24]} Qxe5 {[%emt 0:00:01]} 19. cxd5 {[%emt 0:00:51]} Nxd5 {[%emt 0:00:04]} 20. Bxh7+ {[%emt 0:01:52]} Kh8 {[%emt 0:00:01]} 21. Bf5 {[%emt 0:10:45]} c5 {[%emt 0:07:02]} 22. Ng3 {[%emt 0:02:35]} g6 {[%emt 0:03:09]} 23. Bg4 {[%emt 0:00:24]} c4 {[%emt 0:01:00]} 24. Qd2 {[%emt 0:00:24]} c3 {[%emt 0:15:14]} 25. Qd4 {[%emt 0:01:57]} c2 {[%emt 0:01:47]} 26. Qxe5+ {[%emt 0:00:18]} Rxe5 {[%emt 0:00:00]} 27. Rd4 {[%emt 0:01:21]} a5 {[%emt 0:01:51]} 28. a3 {[%emt 0:06:43]} b4 {[%emt 0:01:02]} 29. Rc4 {[%emt 0:02:34]} Rxc4 {[%emt 0:00:35]} 30. bxc4 {[%emt 0:00:02]} b3 {[%emt 0:00:04]} 0-1

[Event "30th Abu Dhabi Festival A-Open 2024"]
[Site "Abu Dhabi"]
[Date "2024.08.23"]
[Round "8.6"]
[White "Wen, Gehua"]
[Black "Andreasyan, Edgar"]
[Result "0-1"]
[ECO "D10"]
[WhiteElo "2119"]
[BlackElo "2027"]
[Annotator "RC"]
[PlyCount "53"]
[EventDate "2024.08.15"]
[EventType "swiss"]
[EventCountry "UAE"]
[SourceTitle "playchess.com"]
[Source "ChessBase"]
[SourceQuality "1"]
[TimeControl "5400+30"]

1. d4 {[%emt 0:00:03]} d5 {[%emt 0:00:12]} 2. c4 {[%emt 0:00:08]} c6 {[%emt 0:00:05]} 3. cxd5 {[%emt 0:00:16]} cxd5 {[%emt 0:00:02]} 4. Nc3 {[%emt 0:00:07]} Nf6 {[%emt 0:00:07]} 5. Bf4 {[%emt 0:00:05]} Nc6 {[%emt 0:00:07]} 6. e3 {[%emt 0:00:04]} a6 {[%emt 0:00:05]} 7. Rc1 {[%emt 0:00:05]} Bg4 {[%emt 0:05:28]} 8. f3 {[%emt 0:00:12]} Bh5 {[%emt 0:03:51]} 9. h4 {[%emt 0:00:23]} h6 {[%emt 0:05:28]} 10. Bd3 {[%emt 0:11:10]} e6 {[%emt 0:06:59]} 11. Nge2 {[%emt 1:23:27]} Bd6 {[%emt 0:02:12]} 12. Kf2 {[%emt 0:05:32]} e5 {[%emt 0:10:37]} 13. dxe5 {[%emt 0:09:18]} Nxe5 {[%emt 0:00:52]} 14. Bb1 {[%emt 0:04:41]} Bg6 {[%emt 0:36:35]} 15. Nxd5 {[%emt 0:19:38]} Bxb1 {[%emt 0:00:06]} 16. Rxb1 {[%emt 0:01:17]} O-O {[%emt 0:00:02]} 17. Nec3 {[%emt 0:00:46]} Nxd5 {[%emt 0:06:41]} 18. Qxd5 {[%emt 0:31:50]} Qe7 {[%emt 0:00:17]} 19. Bxe5 {[%emt 0:18:38]} Bxe5 {[%emt 0:00:41]} 20. Qe4 {[%emt 0:00:01]} f5 {[%emt 0:02:02]} 21. Qc4+ {[%emt 0:02:11]} Kh8 {[%emt 0:00:25]} 22. Nd5 {[%emt 0:00:21]} Qf7 {[%emt 0:04:34]} 23. Nb6 {[%emt 0:00:45]} Rac8 {[%emt 0:00:08]} 24. Qa4 {[%emt 0:05:27]} Rc6 {[%emt 0:00:26]} 25. Qb4 {[%emt 0:05:39]} Bd6 {[%emt 0:00:01]} 26. Rhd1 {[%emt 0:01:57]} Be5 {[%emt 0:15:27]} 27. Qb3 {[%emt 0:00:30]} 0-1

[Event "30th Abu Dhabi Festival A-Open 2024"]
[Site "Abu Dhabi"]
[Date "2024.08.23"]
[Round "8.7"]
[White "Wang, Hao(Zj)"]
[Black "Zhou, Yichen"]
[Result "0-1"]
[ECO "B97"]
[WhiteElo "2703"]
[BlackElo "2023"]
[Annotator "RC"]
[PlyCount "150"]
[EventDate "2024.08.15"]
[EventType "swiss"]
[EventCountry "UAE"]
[SourceTitle "playchess.com"]
[Source "ChessBase"]
[SourceQuality "1"]
[TimeControl "5400+30"]

1. e4 {[%emt 0:00:03]} c5 {[%emt 0:00:01]} 2. Nf3 {[%emt 0:00:06]} d6 {[%emt 0:00:02]} 3. d4 {[%emt 0:00:05]} cxd4 {[%emt 0:00:03]} 4. Nxd4 {[%emt 0:00:04]} Nf6 {[%emt 0:00:05]} 5. Nc3 {[%emt 0:00:04]} a6 {[%emt 0:00:05]} 6. Bg5 {[%emt 0:00:05]} e6 {[%emt 0:00:05]} 7. f4 {[%emt 0:00:04]} Qb6 {[%emt 0:00:04]} 8. Qd2 {[%emt 0:00:05]} Qxb2 {[%emt 0:00:05]} 9. Rb1 {[%emt 0:00:03]} Qa3 {[%emt 0:00:05]} 10. e5 {[%emt 0:00:13]} dxe5 {[%emt 0:00:06]} 11. fxe5 {[%emt 0:00:06]} Nfd7 {[%emt 0:00:02]} 12. Ne4 {[%emt 0:00:08]} Qxa2 {[%emt 0:00:03]} 13. Rd1 {[%emt 0:00:06]} Qd5 {[%emt 0:00:32]} 14. Qe3 {[%emt 0:00:11]} Bc5 {[%emt 0:04:20]} 15. Nxe6 {[%emt 0:07:06]} Bb4+ {[%emt 0:01:11]} 16. c3 {[%emt 0:04:57]} Qxe6 {[%emt 0:00:01]} 17. cxb4 {[%emt 0:00:26]} O-O {[%emt 0:00:02]} 18. Be2 {[%emt 0:02:47]} Qxe5 {[%emt 0:29:28]} 19. Bf4 {[%emt 0:10:42]} Qe6 {[%emt 0:02:48]} 20. Rd6 {[%emt 0:00:14]} Qe7 {[%emt 0:16:33]} 21. O-O {[%emt 0:03:31]} Nc6 {[%emt 0:04:15]} 22. Bg5 {[%emt 0:05:33]} f6 {[%emt 0:04:04]} 23. Rxc6 {[%emt 0:17:28]} fxg5 {[%emt 0:09:30]} 24. Nf6+ {[%emt 0:00:35]} Qxf6 {[%emt 0:00:02]} 25. Bc4+ {[%emt 0:02:47]} Kh8 {[%emt 0:00:08]} 26. Rfxf6 {[%emt 0:00:08]} Nxf6 {[%emt 0:01:30]} 27. Qe7 {[%emt 0:00:50]} Bd7 {[%emt 0:00:15]} 28. Rxf6 {[%emt 0:01:24]} Rxf6 {[%emt 0:00:01]} 29. Qxd7 {[%emt 0:00:07]} b5 {[%emt 0:01:15]} 30. Bd5 {[%emt 0:01:16]} Raf8 {[%emt 0:00:32]} 31. h3 {[%emt 0:00:04]} h6 {[%emt 0:02:00]} 32. Be4 {[%emt 0:01:07]} Rf4 {[%emt 0:06:22]} 33. Qe6 {[%emt 0:00:13]} Rxe4 {[%emt 0:01:24]} 34. Qxe4 {[%emt 0:00:08]} Rf6 {[%emt 0:00:05]} 35. Kh2 {[%emt 0:00:10]} Kg8 {[%emt 0:00:23]} 36. Qe8+ {[%emt 0:00:45]} Kh7 {[%emt 0:00:13]} 37. Kg3 {[%emt 0:00:05]} Rf4 {[%emt 0:01:41]} 38. Qe7 {[%emt 0:01:39]} Rf6 {[%emt 0:03:02]} 39. Qe4+ {[%emt 0:00:31]} Kg8 {[%emt 0:00:09]} 40. Qd5+ {[%emt 0:01:15]} Kh7 {[%emt 0:02:10]} 41. Qd3+ {[%emt 0:00:05]} Kg8 {[%emt 0:00:13]} 42. Kg4 {[%emt 0:00:10]} Kf7 {[%emt 0:01:12]} 43. Qd7+ {[%emt 0:00:33]} Kf8 {[%emt 0:01:59]} 44. g3 {[%emt 0:00:27]} Kg8 {[%emt 0:00:40]} 45. Qe7 {[%emt 0:00:18]} Kh7 {[%emt 0:01:32]} 46. Kh5 {[%emt 0:00:16]} Rf5 {[%emt 0:02:57]} 47. Qe6 {[%emt 0:01:51]} Rf6 {[%emt 0:00:09]} 48. Qe8 {[%emt 0:02:38]} Rd6 {[%emt 0:00:55]} 49. Qe4+ {[%emt 0:00:20]} Kg8 {[%emt 0:00:42]} 50. Qe7 {[%emt 0:01:34]} Rf6 {[%emt 0:00:25]} 51. Qe8+ {[%emt 0:10:06]} Kh7 {[%emt 0:00:14]} 52. Qd8 {[%emt 0:00:22]} Re6 {[%emt 0:00:48]} 53. Qd3+ {[%emt 0:00:51]} Kh8 {[%emt 0:00:27]} 54. Qf5 {[%emt 0:00:26]} Rb6 {[%emt 0:01:19]} 55. Qf2 {[%emt 0:01:39]} Rc6 {[%emt 0:01:52]} 56. Qf3 {[%emt 0:03:04]} Re6 {[%emt 0:01:15]} 57. Qf5 {[%emt 0:10:24]} Rb6 {[%emt 0:00:39]} 58. Qe5 {[%emt 0:00:09]} Kh7 {[%emt 0:00:50]} 59. Qe4+ {[%emt 0:00:04]} Kh8 {[%emt 0:00:14]} 60. Qd4 {[%emt 0:00:04]} Re6 {[%emt 0:00:38]} 61. Qd7 {[%emt 0:04:27]} Rf6 {[%emt 0:00:15]} 62. Qd8+ {[%emt 0:00:20]} Kh7 {[%emt 0:00:08]} 63. Qe7 {[%emt 0:00:04]} Kg8 {[%emt 0:00:22]} 64. Qe4 {[%emt 0:00:55]} Kh8 {[%emt 0:00:17]} 65. Qc2 {[%emt 0:01:13]} Kg8 {[%emt 0:00:25]} 66. Qd3 {[%emt 0:02:33]} Kh8 {[%emt 0:00:20]} 67. Kg4 {[%emt 0:00:33]} Kg8 {[%emt 0:00:23]} 68. Qe4 {[%emt 0:00:04]} Kh8 {[%emt 0:00:16]} 69. Qf5 {[%emt 0:01:18]} Rxf5 {[%emt 0:06:35]} 70. Kxf5 {[%emt 0:00:06]} Kh7 {[%emt 0:00:03]} 71. Ke6 {[%emt 0:01:54]} g4 {[%emt 0:00:53]} 72. h4 {[%emt 0:02:06]} h5 {[%emt 0:00:17]} 73. Ke5 {[%emt 0:04:33]} g5 {[%emt 0:00:33]} 74. hxg5 {[%emt 0:01:32]} h4 {[%emt 0:00:06]} 75. Kf6 {[%emt 0:01:08]} Kg8 {[%emt 0:00:08]} 0-1

[Event "30th Abu Dhabi Festival A-Open 2024"]
[Site "Abu Dhabi"]
[Date "2024.08.23"]
[Round "8.8"]
[White "EYENGHE, Sunny"]
[Black "Diaz Villagran, Robert"]
[Result "0-1"]
[ECO "E62"]
[WhiteElo "2098"]
[BlackElo "2268"]
[Annotator "RC"]
[PlyCount "72"]
[EventDate "2024.08.15"]
[EventType "swiss"]
[EventCountry "UAE"]
[SourceTitle "playchess.com"]
[Source "ChessBase"]
[SourceQuality "1"]
[TimeControl "5400+30"]

1. Nf3 {[%emt 1:31:00]} Nf6 {[%emt 1:31:00]} 2. c4 {[%emt 0:00:00]} g6 {[%emt 0:00:00]} 3. Nc3 {[%emt 0:00:00]} Bg7 {[%emt 0:00:00]} 4. g3 {[%emt 0:00:00]} O-O {[%emt 0:00:00]} 5. Bg2 {[%emt 0:00:00]} d6 {[%emt 0:00:00]} 6. O-O {[%emt 0:00:00]} e5 {[%emt 0:00:00]} 7. d4 {[%emt 0:00:00]} Nc6 {[%emt 0:00:00]} 8. dxe5 {[%emt 0:00:00]} dxe5 {[%emt 0:00:00]} 9. Bg5 {[%emt 0:00:00]} Be6 {[%emt 0:00:00]} 10. Qa4 {[%emt 0:00:00]} Qc8 {[%emt 0:00:00]} 11. Rfd1 {[%emt 0:00:00]} Nd7 {[%emt 0:00:00]} 12. Nd5 {[%emt 0:00:00]} Re8 {[%emt 0:00:00]} 13. Qc2 {[%emt 0:00:00]} h6 {[%emt 0:00:00]} 14. Be3 {[%emt 0:00:00]} f5 {[%emt 0:00:00]} 15. a3 {[%emt 0:00:00]} a5 {[%emt 0:00:00]} 16. Rac1 {[%emt 0:00:00]} a4 {[%emt 0:00:00]} 17. Nh4 {[%emt 0:00:00]} Nf8 {[%emt 0:00:00]} 18. Bc5 {[%emt 0:00:00]} g5 {[%emt 0:00:00]} 19. Bxf8 {[%emt 0:00:00]} Kxf8 {[%emt 0:00:00]} 20. Nf3 {[%emt 0:00:00]} e4 {[%emt 0:00:00]} 21. Ne1 {[%emt 0:00:00]} Nd4 {[%emt 0:00:00]} 22. Qd2 {[%emt 0:00:00]} Nb3 {[%emt 0:00:00]} 23. Qb4+ {[%emt 0:00:00]} c5 {[%emt 0:00:00]} 24. Qb6 {[%emt 0:00:00]} Ra6 {[%emt 0:00:00]} 25. Qc7 {[%emt 0:00:00]} Bxd5 {[%emt 0:00:00]} 26. Qxc8 {[%emt 0:00:00]} Rxc8 {[%emt 0:00:00]} 27. cxd5 {[%emt 0:00:00]} Nxc1 {[%emt 0:00:00]} 28. Rxc1 {[%emt 0:00:00]} Bxb2 {[%emt 0:00:00]} 29. Rb1 {[%emt 0:00:00]} Bxa3 {[%emt 0:00:00]} 30. Rxb7 {[%emt 0:00:00]} Bb4 {[%emt 0:00:00]} 31. Nc2 {[%emt 0:00:00]} a3 {[%emt 0:00:00]} 32. g4 {[%emt 0:00:00]} a2 {[%emt 0:00:00]} 33. gxf5 {[%emt 0:00:00]} a1=Q+ {[%emt 0:00:00]} 34. Nxa1 {[%emt 0:00:00]} Rxa1+ {[%emt 0:00:00]} 35. Bf1 {[%emt 0:00:00]} Rd8 {[%emt 0:00:00]} 36. Kg2 {[%emt 0:00:00]} Rxd5 {[%emt 0:00:00]} 0-1